[Event "*** Titled Tuesday Blitz"]
[Site "Chess.com"]
[Date "2020.04.14"]
[Round "7"]
[White "ApacheSVD"]
[Black "Malev212"]
[Result "0-1"]
[WhiteElo "2368"]
[BlackElo "2542"]
[TimeControl "180+1"]
[EndTime "11:13:34 PDT"]
[Termination "Malev212 won on time"]

1. e4 {[%clk 0:03:00.9]} 1... Nc6 {[%clk 0:02:59.6]} 2. Nf3 {[%clk 0:02:52.9]}
2... Nf6 {[%clk 0:02:57.1]} 3. Nc3 {[%clk 0:02:51.4]} 3... d6 {[%clk 0:02:55.5]}
4. d4 {[%clk 0:02:51]} 4... Bg4 {[%clk 0:02:46.5]} 5. Be3 {[%clk 0:02:45.9]}
5... e6 {[%clk 0:02:43.8]} 6. h3 {[%clk 0:02:44.9]} 6... Bh5 {[%clk 0:02:42.6]}
7. Bd3 {[%clk 0:02:38.1]} 7... Be7 {[%clk 0:02:41.4]} 8. g4 {[%clk 0:02:21.2]}
8... Bg6 {[%clk 0:02:40.1]} 9. g5 {[%clk 0:02:20.4]} 9... Nd7 {[%clk 0:02:38.4]}
10. Qd2 {[%clk 0:02:20]} 10... Bh5 {[%clk 0:02:29.2]} 11. Be2 {[%clk 0:02:18.8]}
11... a6 {[%clk 0:02:26.5]} 12. a4 {[%clk 0:02:16.9]} 12... O-O {[%clk
0:02:11.3]} 13. O-O-O {[%clk 0:02:08.8]} 13... e5 {[%clk 0:02:09.1]} 14. Nxe5
{[%clk 0:01:45.9]} 14... dxe5 {[%clk 0:01:52.5]} 15. Bxh5 {[%clk 0:01:36]} 15...
exd4 {[%clk 0:01:49.7]} 16. Bxd4 {[%clk 0:01:36.9]} 16... Nxd4 {[%clk
0:01:45.9]} 17. Qxd4 {[%clk 0:01:37.8]} 17... Bxg5+ {[%clk 0:01:44.6]} 18. Kb1
{[%clk 0:01:36.6]} 18... Nb6 {[%clk 0:01:27.5]} 19. a5 {[%clk 0:01:03.1]} 19...
Qxd4 {[%clk 0:01:05.1]} 20. Rxd4 {[%clk 0:01:04]} 20... Bf6 {[%clk 0:00:59.3]}
21. Rb4 {[%clk 0:00:36.8]} 21... Bxc3 {[%clk 0:00:54.7]} 22. bxc3 {[%clk
0:00:36.5]} 22... Nd7 {[%clk 0:00:53.5]} 23. Rxb7 {[%clk 0:00:35.5]} 23... Rab8
{[%clk 0:00:51.5]} 24. Rxb8 {[%clk 0:00:35.7]} 24... Rxb8+ {[%clk 0:00:51.5]}
25. Kc1 {[%clk 0:00:32.8]} 25... Rb5 {[%clk 0:00:44.5]} 26. Rd1 {[%clk
0:00:25.3]} 26... Nf8 {[%clk 0:00:43.9]} 27. Rd5 {[%clk 0:00:18.8]} 27... c5
{[%clk 0:00:34.4]} 0-1

[Event "*** Titled Tuesday Blitz"]
[Site "Chess.com"]
[Date "2020.04.14"]
[Round "7"]
[White "GameOverBro"]
[Black "ReyesBraulio"]
[Result "1-0"]
[WhiteElo "2555"]
[BlackElo "2163"]
[TimeControl "180+1"]
[EndTime "11:13:34 PDT"]
[Termination "GameOverBro won by resignation"]

1. e4 {[%clk 0:03:00.9]} 1... d5 {[%clk 0:02:58.7]} 2. exd5 {[%clk 0:03:00.5]}
2... Qxd5 {[%clk 0:02:58.7]} 3. Nc3 {[%clk 0:03:00.7]} 3... Qd6 {[%clk
0:02:58.8]} 4. d4 {[%clk 0:02:58.7]} 4... a6 {[%clk 0:02:58.9]} 5. Bc4 {[%clk
0:02:57.9]} 5... Nf6 {[%clk 0:02:57.9]} 6. Nge2 {[%clk 0:02:54.3]} 6... Be6
{[%clk 0:02:55]} 7. Bf4 {[%clk 0:02:44.5]} 7... Qd7 {[%clk 0:02:38.1]} 8. Bxe6
{[%clk 0:02:41.5]} 8... fxe6 {[%clk 0:02:37.7]} 9. Qd3 {[%clk 0:02:32.8]} 9...
Nc6 {[%clk 0:02:37.4]} 10. O-O {[%clk 0:02:27.5]} 10... O-O-O {[%clk 0:02:36.6]}
11. Rfd1 {[%clk 0:02:22.4]} 11... Nd5 {[%clk 0:02:35.6]} 12. Bg3 {[%clk
0:02:14.3]} 12... h5 {[%clk 0:02:34.5]} 13. h3 {[%clk 0:02:10.3]} 13... g5
{[%clk 0:02:33.4]} 14. a3 {[%clk 0:02:05.9]} 14... h4 {[%clk 0:02:29.3]} 15. Bh2
{[%clk 0:02:05.9]} 15... Bg7 {[%clk 0:02:25.5]} 16. Ne4 {[%clk 0:02:02.5]} 16...
Rdg8 {[%clk 0:02:13.7]} 17. Nc5 {[%clk 0:01:55.6]} 17... Qe8 {[%clk 0:02:10.4]}
18. Nxe6 {[%clk 0:01:52.7]} 18... Qf7 {[%clk 0:02:01]} 19. Nxg5 {[%clk 0:01:46]}
19... Qh5 {[%clk 0:01:54.1]} 20. Qf5+ {[%clk 0:01:35.3]} 20... Kb8 {[%clk
0:01:51.4]} 21. Qxd5 {[%clk 0:01:24.8]} 21... Bf6 {[%clk 0:01:46.8]} 22. Nf4
{[%clk 0:01:19.7]} 22... Qxg5 {[%clk 0:01:44.1]} 23. Qxg5 {[%clk 0:01:17.6]}
23... Rxg5 {[%clk 0:01:43.9]} 24. Ne6 {[%clk 0:01:15.1]} 24... Rg6 {[%clk
0:01:37.1]} 25. Bxc7+ {[%clk 0:01:12.7]} 25... Kc8 {[%clk 0:01:36.3]} 26. d5
{[%clk 0:01:11.2]} 26... Na7 {[%clk 0:01:23.8]} 27. Bb6 {[%clk 0:01:09]} 27...
Nb5 {[%clk 0:01:23]} 28. c4 {[%clk 0:01:05.9]} 28... Nd6 {[%clk 0:01:22.5]} 29.
c5 {[%clk 0:01:04]} 29... Nc4 {[%clk 0:01:22.6]} 30. Rac1 {[%clk 0:01:02.1]}
30... Ne5 {[%clk 0:01:15.1]} 31. c6 {[%clk 0:00:57.1]} 31... bxc6 {[%clk
0:01:14.3]} 32. dxc6 {[%clk 0:00:58]} 32... Rhg8 {[%clk 0:01:13.8]} 33. Nf4
{[%clk 0:00:56.8]} 33... R6g7 {[%clk 0:01:07.3]} 34. Rc3 {[%clk 0:00:51.3]}
34... Bg5 {[%clk 0:01:05.5]} 35. Ne6 {[%clk 0:00:48.8]} 35... Rg6 {[%clk
0:01:03.4]} 36. Nxg5 {[%clk 0:00:42.5]} 36... Rxg5 {[%clk 0:01:03.6]} 37. g4
{[%clk 0:00:40.3]} 37... Nxg4 {[%clk 0:00:50.3]} 38. hxg4 {[%clk 0:00:37.6]}
38... Rxg4+ {[%clk 0:00:50.9]} 39. Kh2 {[%clk 0:00:35.7]} 39... Rg2+ {[%clk
0:00:49]} 40. Kh3 {[%clk 0:00:36.1]} 40... R2g6 {[%clk 0:00:46.6]} 41. b4 {[%clk
0:00:35]} 41... Rf8 {[%clk 0:00:41.7]} 42. a4 {[%clk 0:00:33.4]} 42... Rgf6
{[%clk 0:00:41.8]} 43. b5 {[%clk 0:00:30.6]} 43... a5 {[%clk 0:00:41.4]} 44.
Rcd3 {[%clk 0:00:27.4]} 1-0

[Event "*** Titled Tuesday Blitz"]
[Site "Chess.com"]
[Date "2020.04.14"]
[Round "7"]
[White "Olga_Girya"]
[Black "manuellarrea"]
[Result "1-0"]
[WhiteElo "2479"]
[BlackElo "2130"]
[TimeControl "180+1"]
[EndTime "11:13:36 PDT"]
[Termination "Olga_Girya won on time"]

1. d4 {[%clk 0:03:00.9]} 1... Nf6 {[%clk 0:02:59]} 2. c4 {[%clk 0:03:00.7]} 2...
e6 {[%clk 0:02:59]} 3. Nf3 {[%clk 0:03:00.7]} 3... d5 {[%clk 0:02:58.7]} 4. Nc3
{[%clk 0:03:00]} 4... c5 {[%clk 0:02:57.4]} 5. cxd5 {[%clk 0:02:59]} 5... Nxd5
{[%clk 0:02:56.5]} 6. e4 {[%clk 0:02:57]} 6... Nxc3 {[%clk 0:02:56]} 7. bxc3
{[%clk 0:02:57.3]} 7... cxd4 {[%clk 0:02:56.5]} 8. cxd4 {[%clk 0:02:57.6]} 8...
Bb4+ {[%clk 0:02:55.6]} 9. Bd2 {[%clk 0:02:57.1]} 9... Bxd2+ {[%clk 0:02:55.4]}
10. Qxd2 {[%clk 0:02:58]} 10... O-O {[%clk 0:02:55.3]} 11. Bc4 {[%clk
0:02:57.9]} 11... Nd7 {[%clk 0:02:53.1]} 12. O-O {[%clk 0:02:57.5]} 12... b6
{[%clk 0:02:53]} 13. Rad1 {[%clk 0:02:57.2]} 13... Bb7 {[%clk 0:02:53.4]} 14.
Rfe1 {[%clk 0:02:57.5]} 14... Rc8 {[%clk 0:02:53.2]} 15. Bb3 {[%clk 0:02:57.8]}
15... Qf6 {[%clk 0:02:52.7]} 16. h3 {[%clk 0:02:54.6]} 16... Rfe8 {[%clk
0:02:39.8]} 17. Re3 {[%clk 0:02:53.9]} 17... Rc7 {[%clk 0:02:24.6]} 18. Qe1
{[%clk 0:02:47.3]} 18... Rec8 {[%clk 0:02:23]} 19. d5 {[%clk 0:02:41.4]} 19...
exd5 {[%clk 0:02:11.3]} 20. e5 {[%clk 0:02:41.4]} 20... Qg6 {[%clk 0:02:03.5]}
21. Nd4 {[%clk 0:02:40.5]} 21... Nc5 {[%clk 0:01:51.1]} 22. Nb5 {[%clk
0:02:22.3]} 22... Re7 {[%clk 0:01:19.5]} 23. Nd6 {[%clk 0:02:21.8]} 23... Rd8
{[%clk 0:01:09]} 24. Bxd5 {[%clk 0:01:29]} 24... Bxd5 {[%clk 0:01:00.1]} 25.
Rxd5 {[%clk 0:01:29.9]} 25... Qe6 {[%clk 0:00:46.3]} 26. Rd4 {[%clk 0:01:18.9]}
26... Qxa2 {[%clk 0:00:39.4]} 27. Rg4 {[%clk 0:01:16.6]} 27... g6 {[%clk
0:00:16.5]} 28. Kh2 {[%clk 0:01:01.7]} 28... Re6 {[%clk 0:00:15.3]} 29. f4
{[%clk 0:00:57.4]} 29... h5 {[%clk 0:00:09.4]} 30. Rgg3 {[%clk 0:00:52.3]} 30...
Kh7 {[%clk 0:00:04.8]} 31. f5 {[%clk 0:00:49.4]} 31... Rexd6 {[%clk 0:00:01.7]}
32. exd6 {[%clk 0:00:47.4]} 32... Rxd6 {[%clk 0:00:01.4]} 33. fxg6+ {[%clk
0:00:47.5]} 1-0

[Event "*** Titled Tuesday Blitz"]
[Site "Chess.com"]
[Date "2020.04.14"]
[Round "7"]
[White "Gubajdullin"]
[Black "mphofmann"]
[Result "0-1"]
[WhiteElo "2442"]
[BlackElo "2277"]
[TimeControl "180+1"]
[EndTime "11:13:36 PDT"]
[Termination "mphofmann won by checkmate"]

1. d4 {[%clk 0:02:55.2]} 1... b6 {[%clk 0:02:59.8]} 2. Bf4 {[%clk 0:02:55.7]}
2... Bb7 {[%clk 0:02:59.6]} 3. e3 {[%clk 0:02:56.6]} 3... h6 {[%clk 0:02:57.1]}
4. Nf3 {[%clk 0:02:57.5]} 4... g5 {[%clk 0:02:54.7]} 5. Be2 {[%clk 0:02:58.4]}
5... gxf4 {[%clk 0:02:50.6]} 6. exf4 {[%clk 0:02:57.6]} 6... e6 {[%clk 0:02:46]}
7. O-O {[%clk 0:02:57.6]} 7... d6 {[%clk 0:02:41.1]} 8. f5 {[%clk 0:02:56.7]}
8... Nd7 {[%clk 0:02:36.4]} 9. fxe6 {[%clk 0:02:56.3]} 9... fxe6 {[%clk
0:02:35.5]} 10. Nh4 {[%clk 0:02:56.5]} 10... Qxh4 {[%clk 0:02:29]} 11. Bf3
{[%clk 0:02:55.7]} 11... O-O-O {[%clk 0:02:24]} 12. Bxb7+ {[%clk 0:02:54.3]}
12... Kxb7 {[%clk 0:02:24.9]} 13. Qf3+ {[%clk 0:02:54.4]} 13... d5 {[%clk
0:02:21.3]} 14. a4 {[%clk 0:02:54.2]} 14... a5 {[%clk 0:02:18.9]} 15. c3 {[%clk
0:02:53.3]} 15... Ngf6 {[%clk 0:02:15.6]} 16. b4 {[%clk 0:02:50.5]} 16... Ra8
{[%clk 0:02:07.1]} 17. Na3 {[%clk 0:02:49.1]} 17... axb4 {[%clk 0:01:56.7]} 18.
Nb5 {[%clk 0:02:45.3]} 18... c6 {[%clk 0:01:49.1]} 19. c4 {[%clk 0:02:42.8]}
19... cxb5 {[%clk 0:01:47.3]} 20. axb5 {[%clk 0:02:42.9]} 20... Qxd4 {[%clk
0:01:42.6]} 21. Rxa8 {[%clk 0:02:41.3]} 21... Kxa8 {[%clk 0:01:41.7]} 22. Qb3
{[%clk 0:02:33.2]} 22... Kb7 {[%clk 0:01:18]} 23. Qa2 {[%clk 0:02:28]} 23... Nb8
{[%clk 0:01:15.7]} 24. Ra1 {[%clk 0:02:25.9]} 24... Bc5 {[%clk 0:01:11.5]} 25.
Qa8+ {[%clk 0:01:52.8]} 25... Kc8 {[%clk 0:01:09.3]} 26. cxd5 {[%clk 0:01:36.4]}
26... Rg8 {[%clk 0:00:56.9]} 27. dxe6 {[%clk 0:01:23]} 27... Ne4 {[%clk
0:00:39.7]} 28. Rf1 {[%clk 0:00:49]} 28... Nxf2 {[%clk 0:00:36.1]} 29. h3 {[%clk
0:00:48.4]} 29... Nxh3+ {[%clk 0:00:27.8]} 30. Kh1 {[%clk 0:00:47.9]} 30... Nf2+
{[%clk 0:00:24]} 31. Kg1 {[%clk 0:00:47.5]} 31... Ng4+ {[%clk 0:00:16.2]} 32.
Kh1 {[%clk 0:00:46.3]} 32... Nf2+ {[%clk 0:00:10.7]} 33. Kg1 {[%clk 0:00:45.8]}
33... Nd3+ {[%clk 0:00:09.6]} 34. Kh1 {[%clk 0:00:43.6]} 34... Qh4# {[%clk
0:00:09.4]} 0-1

[Event "*** Titled Tuesday Blitz"]
[Site "Chess.com"]
[Date "2020.04.14"]
[Round "7"]
[White "KingCrusher275"]
[Black "FM_Deuteronomio32"]
[Result "0-1"]
[WhiteElo "2358"]
[BlackElo "2245"]
[TimeControl "180+1"]
[EndTime "11:13:36 PDT"]
[Termination "FM_Deuteronomio32 won by resignation"]

1. d4 {[%clk 0:03:00.9]} 1... Nf6 {[%clk 0:02:59]} 2. c4 {[%clk 0:03:01.2]} 2...
g6 {[%clk 0:02:58.9]} 3. Nc3 {[%clk 0:03:01.4]} 3... d5 {[%clk 0:02:59.1]} 4.
cxd5 {[%clk 0:03:01.2]} 4... Nxd5 {[%clk 0:03:00]} 5. e4 {[%clk 0:03:01.5]} 5...
Nxc3 {[%clk 0:03:00.7]} 6. bxc3 {[%clk 0:03:02.4]} 6... Bg7 {[%clk 0:03:01.2]}
7. Nf3 {[%clk 0:03:03]} 7... c5 {[%clk 0:03:01]} 8. Be3 {[%clk 0:03:03.3]} 8...
Nc6 {[%clk 0:02:46.7]} 9. Be2 {[%clk 0:02:58.7]} 9... cxd4 {[%clk 0:02:41.8]}
10. cxd4 {[%clk 0:02:57.9]} 10... Qa5+ {[%clk 0:02:42.4]} 11. Bd2 {[%clk
0:02:56.5]} 11... Qa3 {[%clk 0:02:33.7]} 12. d5 {[%clk 0:02:41.9]} 12... Nd4
{[%clk 0:02:17.1]} 13. Nxd4 {[%clk 0:02:30.1]} 13... Bxd4 {[%clk 0:02:18]} 14.
Rc1 {[%clk 0:02:18.4]} 14... O-O {[%clk 0:02:16.6]} 15. O-O {[%clk 0:02:08.8]}
15... Qxa2 {[%clk 0:02:12.9]} 16. Bb4 {[%clk 0:01:24.8]} 16... Bf6 {[%clk
0:01:46.9]} 17. Rc2 {[%clk 0:00:36.7]} 17... Qa4 {[%clk 0:01:09]} 18. Qd2 {[%clk
0:00:25.4]} 18... Bd7 {[%clk 0:00:26.8]} 19. Ra2 {[%clk 0:00:20.1]} 19... Qb3
{[%clk 0:00:22.1]} 20. Rc1 {[%clk 0:00:17.9]} 20... Rfc8 {[%clk 0:00:20.4]} 21.
Rxc8+ {[%clk 0:00:17.5]} 21... Rxc8 {[%clk 0:00:21.3]} 22. Rxa7 {[%clk
0:00:17.2]} 22... Rc2 {[%clk 0:00:18.5]} 23. Qe1 {[%clk 0:00:16.8]} 23... Rb2
{[%clk 0:00:16.9]} 24. Bd2 {[%clk 0:00:15.7]} 24... Rb1 {[%clk 0:00:17]} 25. Bc1
{[%clk 0:00:16.1]} 25... Bb2 {[%clk 0:00:17.5]} 26. Ra8+ {[%clk 0:00:14.8]}
26... Kg7 {[%clk 0:00:17.6]} 27. Bd1 {[%clk 0:00:14.5]} 27... Rxc1 {[%clk
0:00:16.6]} 0-1

[Event "*** Titled Tuesday Blitz"]
[Site "Chess.com"]
[Date "2020.04.14"]
[Round "7"]
[White "IMTominho"]
[Black "Y0ung_Capablanca"]
[Result "0-1"]
[WhiteElo "2836"]
[BlackElo "2718"]
[TimeControl "180+1"]
[EndTime "11:13:37 PDT"]
[Termination "Y0ung_Capablanca won by resignation"]

1. d4 {[%clk 0:03:00.9]} 1... Nf6 {[%clk 0:02:59.7]} 2. c4 {[%clk 0:03:00.8]}
2... e6 {[%clk 0:02:59.5]} 3. Nf3 {[%clk 0:02:57.4]} 3... b6 {[%clk 0:02:59.5]}
4. g3 {[%clk 0:02:57]} 4... Bb7 {[%clk 0:02:59.1]} 5. Bg2 {[%clk 0:02:57.4]}
5... c5 {[%clk 0:02:58]} 6. d5 {[%clk 0:02:49.3]} 6... exd5 {[%clk 0:02:58.2]}
7. Ng5 {[%clk 0:02:44]} 7... h6 {[%clk 0:02:51.3]} 8. Nh3 {[%clk 0:02:43]} 8...
b5 {[%clk 0:02:51.7]} 9. cxb5 {[%clk 0:02:27.8]} 9... Qb6 {[%clk 0:02:47.2]} 10.
O-O {[%clk 0:02:24.2]} 10... Be7 {[%clk 0:02:33.3]} 11. Nf4 {[%clk 0:02:01.3]}
11... d4 {[%clk 0:02:31.5]} 12. Bxb7 {[%clk 0:01:49.5]} 12... Qxb7 {[%clk
0:02:32.4]} 13. a4 {[%clk 0:01:49.7]} 13... O-O {[%clk 0:02:28.1]} 14. e3 {[%clk
0:01:45.8]} 14... dxe3 {[%clk 0:02:27.1]} 15. Bxe3 {[%clk 0:01:46.7]} 15... d5
{[%clk 0:02:27.2]} 16. Re1 {[%clk 0:01:45.3]} 16... a6 {[%clk 0:02:23.6]} 17.
Na3 {[%clk 0:01:42.2]} 17... Rd8 {[%clk 0:02:09.6]} 18. Qf3 {[%clk 0:01:37.1]}
18... Nbd7 {[%clk 0:01:51.6]} 19. bxa6 {[%clk 0:01:21.3]} 19... Rxa6 {[%clk
0:01:47.3]} 20. Nb5 {[%clk 0:01:21.2]} 20... Ne5 {[%clk 0:01:44.5]} 21. Qg2
{[%clk 0:01:20.9]} 21... Nc4 {[%clk 0:01:39.3]} 22. b3 {[%clk 0:01:16.8]} 22...
Nxe3 {[%clk 0:01:29.8]} 23. Rxe3 {[%clk 0:01:16.8]} 23... Qxb5 {[%clk
0:01:28.9]} 24. Rxe7 {[%clk 0:01:13]} 24... Qxb3 {[%clk 0:01:28.2]} 25. a5
{[%clk 0:00:58.6]} 25... Qc3 {[%clk 0:01:23.7]} 26. Rae1 {[%clk 0:00:54.4]}
26... Rxa5 {[%clk 0:01:23.7]} 27. Qh3 {[%clk 0:00:44.5]} 27... Ra1 {[%clk
0:01:19.6]} 28. Rxa1 {[%clk 0:00:43.5]} 28... Qxa1+ {[%clk 0:01:18.8]} 29. Kg2
{[%clk 0:00:44.4]} 29... d4 {[%clk 0:01:18.5]} 30. Rxf7 {[%clk 0:00:44.1]} 30...
Qa8+ {[%clk 0:01:11.2]} 31. Kg1 {[%clk 0:00:44.2]} 31... Re8 {[%clk 0:00:53.9]}
32. Qf1 {[%clk 0:00:19.2]} 32... Kxf7 {[%clk 0:00:33.1]} 33. Qc4+ {[%clk
0:00:19]} 33... Nd5 {[%clk 0:00:30.6]} 34. Nxd5 {[%clk 0:00:19]} 34... Re1+
{[%clk 0:00:31]} 35. Kg2 {[%clk 0:00:19.3]} 35... Re5 {[%clk 0:00:31.7]} 0-1

[Event "*** Titled Tuesday Blitz"]
[Site "Chess.com"]
[Date "2020.04.14"]
[Round "7"]
[White "AlexOstrovskiy"]
[Black "SPEEDSKATER"]
[Result "0-1"]
[WhiteElo "2655"]
[BlackElo "2828"]
[TimeControl "180+1"]
[EndTime "11:13:37 PDT"]
[Termination "SPEEDSKATER won on time"]

1. d4 {[%clk 0:03:00.9]} 1... d5 {[%clk 0:02:57]} 2. Bf4 {[%clk 0:03:01.2]} 2...
Nf6 {[%clk 0:02:56.3]} 3. e3 {[%clk 0:03:01.3]} 3... Bg4 {[%clk 0:02:55.8]} 4.
f3 {[%clk 0:02:53.1]} 4... Bd7 {[%clk 0:02:54.7]} 5. Nc3 {[%clk 0:02:42.4]} 5...
c5 {[%clk 0:02:48.3]} 6. dxc5 {[%clk 0:02:25.7]} 6... Qa5 {[%clk 0:02:36.6]} 7.
a3 {[%clk 0:02:17.4]} 7... Qxc5 {[%clk 0:02:35.2]} 8. Qd2 {[%clk 0:02:09.9]}
8... Nc6 {[%clk 0:02:30.3]} 9. b4 {[%clk 0:02:06.1]} 9... Qb6 {[%clk 0:02:28.4]}
10. b5 {[%clk 0:02:06.2]} 10... Na5 {[%clk 0:02:26.3]} 11. Be5 {[%clk
0:01:59.9]} 11... e6 {[%clk 0:02:21.5]} 12. Bd3 {[%clk 0:01:52.4]} 12... Rc8
{[%clk 0:02:17.9]} 13. Nge2 {[%clk 0:01:45.7]} 13... Bd6 {[%clk 0:02:06]} 14.
Na4 {[%clk 0:01:29.9]} 14... Bxe5 {[%clk 0:02:00]} 15. Nxb6 {[%clk 0:01:29.7]}
15... axb6 {[%clk 0:02:00.9]} 16. Nd4 {[%clk 0:01:22]} 16... Nc4 {[%clk
0:02:00.8]} 17. Bxc4 {[%clk 0:01:22.1]} 17... Rxc4 {[%clk 0:02:01.6]} 18. a4
{[%clk 0:01:12.4]} 18... Bd6 {[%clk 0:02:01]} 19. c3 {[%clk 0:01:09]} 19... O-O
{[%clk 0:01:59]} 20. O-O {[%clk 0:01:08.7]} 20... Rfc8 {[%clk 0:01:59]} 21. Ne2
{[%clk 0:01:08.8]} 21... e5 {[%clk 0:01:55]} 22. a5 {[%clk 0:00:57.8]} 22...
bxa5 {[%clk 0:01:50.7]} 23. Rxa5 {[%clk 0:00:58.7]} 23... b6 {[%clk 0:01:50.1]}
24. Ra6 {[%clk 0:00:49.1]} 24... Bc5 {[%clk 0:01:46.7]} 25. Rfa1 {[%clk
0:00:45.6]} 25... g6 {[%clk 0:01:44.9]} 26. Ra8 {[%clk 0:00:37]} 26... Rxa8
{[%clk 0:01:44.2]} 27. Rxa8+ {[%clk 0:00:37.9]} 27... Kg7 {[%clk 0:01:44.8]} 28.
g4 {[%clk 0:00:36.2]} 28... h6 {[%clk 0:01:41.7]} 29. h4 {[%clk 0:00:34.9]}
29... Be6 {[%clk 0:01:22.4]} 30. g5 {[%clk 0:00:22.6]} 30... hxg5 {[%clk
0:01:18.5]} 31. hxg5 {[%clk 0:00:23.4]} 31... Nh7 {[%clk 0:01:18.8]} 32. Kf1
{[%clk 0:00:09.1]} 32... Nxg5 {[%clk 0:01:10.8]} 33. Ng1 {[%clk 0:00:09]} 33...
Rh4 {[%clk 0:01:03.6]} 34. c4 {[%clk 0:00:04.7]} 34... Rxc4 {[%clk 0:01:00.7]}
35. Qh2 {[%clk 0:00:04.2]} 35... Rc1+ {[%clk 0:00:51.1]} 36. Kf2 {[%clk
0:00:04.6]} 36... Nh3+ {[%clk 0:00:50.9]} 0-1

[Event "*** Titled Tuesday Blitz"]
[Site "Chess.com"]
[Date "2020.04.14"]
[Round "7"]
[White "Schandenfreude"]
[Black "realmadridtv"]
[Result "1-0"]
[WhiteElo "2494"]
[BlackElo "2299"]
[TimeControl "180+1"]
[EndTime "11:13:37 PDT"]
[Termination "Schandenfreude won by resignation"]

1. Nf3 {[%clk 0:03:00.9]} 1... Nf6 {[%clk 0:00:16.6]} 2. g3 {[%clk 0:02:50.5]}
2... g6 {[%clk 0:00:16.4]} 3. b3 {[%clk 0:02:50.3]} 3... Bg7 {[%clk 0:00:16.8]}
4. Bb2 {[%clk 0:02:50.7]} 4... O-O {[%clk 0:00:17.4]} 5. Bg2 {[%clk 0:02:49.7]}
5... b6 {[%clk 0:00:17.9]} 6. O-O {[%clk 0:02:48.1]} 6... Bb7 {[%clk 0:00:18.4]}
7. c4 {[%clk 0:02:47.9]} 7... c5 {[%clk 0:00:18.3]} 8. d4 {[%clk 0:02:47.7]}
8... cxd4 {[%clk 0:00:18.5]} 9. Qxd4 {[%clk 0:02:47.6]} 9... Nc6 {[%clk
0:00:18]} 10. Qd1 {[%clk 0:02:45.9]} 10... d5 {[%clk 0:00:18.4]} 11. Nbd2 {[%clk
0:02:41.9]} 11... dxc4 {[%clk 0:00:18.8]} 12. Nxc4 {[%clk 0:02:41.6]} 12... Qxd1
{[%clk 0:00:19.5]} 13. Rfxd1 {[%clk 0:02:41]} 13... Rfd8 {[%clk 0:00:20.4]} 14.
Nfe5 {[%clk 0:02:37.5]} 14... Nxe5 {[%clk 0:00:17.7]} 15. Bxb7 {[%clk
0:02:28.2]} 15... Rxd1+ {[%clk 0:00:17.8]} 16. Rxd1 {[%clk 0:02:24.4]} 16...
Nxc4 {[%clk 0:00:17.7]} 17. Bxa8 {[%clk 0:01:41]} 17... Nxb2 {[%clk 0:00:16.8]}
18. Rd8+ {[%clk 0:01:40.6]} 18... Bf8 {[%clk 0:00:16.2]} 19. Rd2 {[%clk
0:01:39.9]} 19... Na4 {[%clk 0:00:13.2]} 20. bxa4 {[%clk 0:01:38.9]} 20... e6
{[%clk 0:00:12.6]} 21. Kg2 {[%clk 0:01:23.2]} 21... Kg7 {[%clk 0:00:13]} 22. Rc2
{[%clk 0:01:13]} 22... a5 {[%clk 0:00:13]} 23. Bf3 {[%clk 0:01:10.3]} 23... Bc5
{[%clk 0:00:13.4]} 24. Rd2 {[%clk 0:01:04.4]} 24... Ne8 {[%clk 0:00:13]} 25. Rd8
{[%clk 0:01:01.2]} 25... Nd6 {[%clk 0:00:13.5]} 26. e3 {[%clk 0:00:56]} 26...
Nc4 {[%clk 0:00:13.5]} 27. Rd7 {[%clk 0:00:51.1]} 27... h5 {[%clk 0:00:12.8]}
28. Rb7 {[%clk 0:00:43.2]} 28... Nb2 {[%clk 0:00:11.9]} 29. Bc6 {[%clk
0:00:41.4]} 29... Kg8 {[%clk 0:00:11.3]} 30. Be8 {[%clk 0:00:39.5]} 30... f5
{[%clk 0:00:09.9]} 31. Bxg6 {[%clk 0:00:36]} 31... Nxa4 {[%clk 0:00:09.3]} 32.
Bf7+ {[%clk 0:00:34.5]} 1-0

[Event "*** Titled Tuesday Blitz"]
[Site "Chess.com"]
[Date "2020.04.14"]
[Round "7"]
[White "NiranjanNavalgund"]
[Black "Semen_Khanin"]
[Result "0-1"]
[WhiteElo "2434"]
[BlackElo "2612"]
[TimeControl "180+1"]
[EndTime "11:13:39 PDT"]
[Termination "Semen_Khanin won by checkmate"]

1. d4 {[%clk 0:03:00.9]} 1... Nf6 {[%clk 0:02:59.5]} 2. c4 {[%clk 0:03:01.8]}
2... e6 {[%clk 0:03:00.4]} 3. g3 {[%clk 0:03:01.8]} 3... d5 {[%clk 0:03:00.2]}
4. Bg2 {[%clk 0:03:02.7]} 4... Bb4+ {[%clk 0:02:59.3]} 5. Nd2 {[%clk 0:03:01.9]}
5... O-O {[%clk 0:02:58.8]} 6. Nf3 {[%clk 0:03:01.5]} 6... c6 {[%clk 0:02:57.1]}
7. O-O {[%clk 0:03:01.4]} 7... Nbd7 {[%clk 0:02:56.2]} 8. Qc2 {[%clk 0:03:01.7]}
8... b6 {[%clk 0:02:53.8]} 9. e4 {[%clk 0:03:01.8]} 9... Ba6 {[%clk 0:02:47.9]}
10. e5 {[%clk 0:03:00.1]} 10... Ne8 {[%clk 0:02:45.9]} 11. a3 {[%clk 0:03:00.2]}
11... Be7 {[%clk 0:02:45.6]} 12. cxd5 {[%clk 0:02:58.3]} 12... Bxf1 {[%clk
0:02:44.1]} 13. Nxf1 {[%clk 0:02:53.2]} 13... cxd5 {[%clk 0:02:43.5]} 14. h4
{[%clk 0:02:53.3]} 14... Rc8 {[%clk 0:02:42.9]} 15. Qd1 {[%clk 0:02:53]} 15...
Qc7 {[%clk 0:02:38.4]} 16. Ne3 {[%clk 0:02:52.6]} 16... f6 {[%clk 0:02:35.8]}
17. exf6 {[%clk 0:02:51.9]} 17... Nexf6 {[%clk 0:02:34.5]} 18. Bd2 {[%clk
0:02:52.8]} 18... Ne4 {[%clk 0:02:33.6]} 19. Be1 {[%clk 0:02:52.3]} 19... Bd6
{[%clk 0:02:30.7]} 20. Ng5 {[%clk 0:02:50.2]} 20... Nxg5 {[%clk 0:02:29.5]} 21.
hxg5 {[%clk 0:02:51.1]} 21... b5 {[%clk 0:02:00.7]} 22. Qg4 {[%clk 0:02:46.8]}
22... Rce8 {[%clk 0:01:57.5]} 23. Bf1 {[%clk 0:02:47]} 23... a6 {[%clk
0:01:54.1]} 24. Bd3 {[%clk 0:02:46.7]} 24... g6 {[%clk 0:01:54.3]} 25. Kg2
{[%clk 0:02:43.6]} 25... Nb6 {[%clk 0:01:53.2]} 26. f4 {[%clk 0:02:42.7]} 26...
Nc4 {[%clk 0:01:52.7]} 27. Bf2 {[%clk 0:02:41]} 27... Nxb2 {[%clk 0:01:49.5]}
28. Be2 {[%clk 0:02:38.7]} 28... Qc3 {[%clk 0:01:45.1]} 29. Rh1 {[%clk
0:02:26.4]} 29... Rf7 {[%clk 0:01:45.1]} 30. Qh4 {[%clk 0:02:18.5]} 30... Qd2
{[%clk 0:01:20.4]} 31. Ng4 {[%clk 0:02:10.6]} 31... Qxe2 {[%clk 0:01:13.9]} 32.
Nh6+ {[%clk 0:02:08.4]} 32... Kf8 {[%clk 0:01:12.3]} 33. Nxf7 {[%clk 0:02:08.6]}
33... Nd3 {[%clk 0:01:06.4]} 34. Nxd6 {[%clk 0:01:56.2]} 34... Qxf2+ {[%clk
0:00:52.1]} 35. Kh3 {[%clk 0:01:56.1]} 35... Qf3 {[%clk 0:00:50.1]} 36. Rh2
{[%clk 0:01:26]} 36... Re7 {[%clk 0:00:40.9]} 37. Qh6+ {[%clk 0:01:21.3]} 37...
Kg8 {[%clk 0:00:37.7]} 38. Qh4 {[%clk 0:00:52]} 38... a5 {[%clk 0:00:36.9]} 39.
Rc2 {[%clk 0:00:37]} 39... Qh1+ {[%clk 0:00:30]} 40. Rh2 {[%clk 0:00:36.3]}
40... Nf2# {[%clk 0:00:29.3]} 0-1